bitfinex/quotes_ETHUSD_20220212
["timestamp","ask_amount","ask_price","bid_price","bid_amount"]
[1644643820532,0.39806106,2931.3,2931.2,2.47604432]
[1644643820731,0.08712301,2931.3,2931.2,2.47604432]
[1644643821131,0.39803458,2931.3,2931.2,2.47604432]
[1644643821334,0.39804513,2931.3,2931.2,2.47604432]
[1644643821535,0.08712301,2931.3,2931.2,2.47604432]
[1644643821732,0.39805424,2931.3,2931.2,2.47604432]
[1644643821932,0.39804022,2931.3,2931.2,2.47604432]
[1644643822132,0.08712301,2931.3,2931.2,2.47604432]
[1644643822331,0.3980343,2931.3,2931.2,2.47604432]
[1644643822532,0.08712301,2931.3,2931.2,2.47604432]
[1644643823135,0.39801531,2931.3,2931.2,2.47604432]
[1644643823336,0.08712301,2931.3,2931.2,2.47604432]
[1644643823982,0.39801188,2931.3,2931.2,2.47604432]
[1644643824486,0.39801188,2931.3,2931.2,1.62314432]
[1644643825084,0.39801188,2931.3,2931.2,1.63055263]
[1644643825386,0.39801188,2931.3,2931.2,1.63054867]
[1644643825586,0.4200792,2931.3,2931.2,0.49367453]
[1644643825788,0.4200792,2931.3,2931.2,1.63217712]
[1644643825988,0.4200792,2931.3,2931.2,0.49367453]
[1644643826386,0.4200792,2931.3,2931.2,1.6321792]
[1644643826590,0.4200792,2931.3,2931.2,0.49367453]
[1644643826791,0.4210792,2931.3,2931.2,0.49367453]
[1644643827288,0.4210792,2931.3,2931.2,1.63176647]
[1644643827488,0.4210792,2931.3,2931.2,0.49367453]
[1644643827735,0.4200792,2931.3,2931.2,1.63177676]
[1644643830439,0.41833829,2931.3,2931.2,1.63177676]
[1644643830641,0.10919033,2931.3,2931.2,1.63177676]
[1644643830840,0.4184007,2931.3,2931.2,1.63177676]
[1644643831040,0.10919033,2931.3,2931.2,1.63177676]
[1644643831240,0.41839443,2931.3,2931.2,1.63177676]
[1644643831480,0.10919033,2931.3,2931.2,1.63177676]
[1644643831681,0.418394,2931.3,2931.2,1.63177676]
[1644643831882,0.41839267,2931.3,2931.2,1.63177676]
[1644643832083,0.41839407,2931.3,2931.2,1.63177676]
[1644643832280,0.10919033,2931.3,2931.2,1.63177676]
[1644643832481,0.41838526,2931.3,2931.2,1.63177676]
[1644643832683,0.41838526,2931.3,2931.2,0.49367453]
[1644643833186,0.41838526,2931.3,2931.2,1.63674644]
[1644643833383,0.41838526,2931.3,2931.2,0.49367453]
[1644643833584,0.41838526,2931.3,2931.2,1.63674795]
[1644643833884,0.41838526,2931.3,2931.2,0.49367453]
[1644643834083,0.41838526,2931.3,2931.2,1.6367225]
[1644643835331,0.10919033,2931.3,2931.2,1.6367225]
[1644643835735,0.4129135,2931.3,2931.2,1.6367225]
[1644643836937,0.10919033,2931.3,2931.2,1.6367225]
[1644643837435,0.41285251,2931.3,2931.2,1.6367225]
[1644643837636,0.10919033,2931.3,2931.2,1.6367225]
[1644643837836,0.41275932,2931.3,2931.2,1.6367225]
[1644643838035,0.41273701,2931.3,2931.2,1.6367225]
[1644643838235,0.41270567,2931.3,2931.2,1.6367225]
[1644643838436,0.10919033,2931.3,2931.2,1.6367225]
[1644643838635,0.41274174,2931.3,2931.2,1.6367225]
[1644643838891,0.10919033,2931.3,2931.2,1.6367225]
[1644643839279,0.4127698,2931.3,2931.2,1.6367225]
[1644643839479,0.41275582,2931.3,2931.2,1.6367225]
[1644643839679,0.10919033,2931.3,2931.2,1.6367225]
[1644643839882,0.41277086,2931.3,2931.2,1.6367225]
[1644643840081,0.41277399,2931.3,2931.2,1.6367225]
[1644643840282,0.10919033,2931.3,2931.2,1.6367225]
[1644643840481,0.10919033,2931.3,2931.2,0.00267453]
[1644643840482,0.412823,2931.3,2931.2,0.00267453]
[1644643840681,0.412823,2931.3,2931.1,0.0065588]
[1644643840882,0.412823,2931.3,2931.1,0.00270664]
[1644643840883,3.7735014,2931.2,2931.1,0.00270664]
[1644643841082,0.30463267,2931.2,2931.1,0.00270664]
[1644643841281,0.30463267,2931.2,2931.0,0.00267453]
[1644643841282,3.95690181,2931.2,2931.0,0.00267453]
[1644643841482,2.0,2931.0,2930.1,0.25]
[1644643841691,5.64742682,2930.8,2930.2,1.14683455]
[1644643841886,5.64742682,2930.8,2930.1,0.00267542]
[1644643841887,5.0,2930.5,2930.1,0.00267542]
[1644643842083,3.3956422,2930.4,2929.7,0.00267542]
[1644643842282,3.5662422,2930.4,2929.7,0.00267542]
[1644643842486,0.9002355,2929.8,2929.7,0.00267542]
[1644643842739,3.7053342,2930.5,2929.9,0.00239529]
[1644643842939,0.1706,2930.5,2929.9,0.00239529]
[1644643843539,0.1706,2930.5,2929.4,0.65074571]
[1644643843741,0.91718688,2930.2,2929.3,1.50418111]
[1644643843941,0.91718688,2930.2,2930.1,0.00239517]
[1644643844140,7.51434642,2930.6,2930.1,0.00239517]
[1644643844141,3.9505,2930.6,2930.1,0.00239517]
[1644643844739,3.9505,2930.6,2929.5,0.491]
[1644643844740,3.9505,2930.6,2929.5,1.491]
[1644643844940,3.9505,2930.6,2929.8,1.70659]
[1644643845144,2.06903799,2930.7,2930.2,0.00239505]
[1644643846143,2.06903799,2930.7,2929.7,1.65663]
[1644643846386,2.06903799,2930.7,2930.3,0.00797297]
[1644643846781,0.04351091,2930.5,2930.3,0.00797297]
[1644643847282,0.04351091,2930.5,2929.7,1.65663]
[1644643847488,0.04351091,2930.5,2930.3,0.00797311]
[1644643848390,0.04351091,2930.5,2929.9,0.85335]
[1644643848588,0.04351091,2930.5,2929.8,0.491]
[1644643850237,0.21411091,2930.5,2929.8,0.491]
[1644643851035,0.21411091,2930.5,2929.8,0.441]
[1644643851340,0.04351091,2930.5,2930.0,0.0079562]
[1644643851539,0.04351091,2930.2,2930.0,0.0079562]
[1644643851941,0.04351091,2930.1,2930.0,0.0079562]
[1644643852140,0.04351091,2930.1,2929.9,0.1706]
[1644643852340,0.04351091,2930.1,2930.0,0.00795634]
[1644643853340,0.04351091,2930.1,2929.9,0.1706]
[1644643853543,0.04351091,2930.1,2929.9,0.17855648]
[1644643854388,0.04351091,2930.1,2929.9,0.1706]
[1644643854588,0.04351091,2930.1,2929.9,0.0706]
[1644643854790,0.04351091,2930.1,2929.9,0.07855661]
[1644643855789,0.04351091,2930.1,2929.8,1.29437]
[1644643855990,0.04351091,2930.1,2929.9,0.00795661]
[1644643856591,0.04351091,2930.1,2929.9,0.01061372]
[1644643856791,0.04351091,2930.0,2929.9,0.01061372]
[1644643856990,0.04351091,2930.0,2929.9,0.00265711]
[1644643857191,0.04351091,2930.0,2929.9,0.01061372]
[1644643857390,0.08702182,2930.0,2929.9,0.01061372]
[1644643858039,0.08702182,2930.0,2929.9,0.00265711]
[1644643859239,0.08702182,2930.0,2929.8,0.441]
[1644643859440,0.08702182,2930.0,2929.7,0.00265711]
[1644643859644,0.1706,2929.9,2929.8,0.00793916]
[1644643860239,1.32339021,2929.9,2929.8,0.00793916]
[1644643860440,1.32339021,2929.9,2929.5,0.00265711]
[1644643860840,1.32339021,2929.9,2929.7,0.0066769]
[1644643861041,1.15279021,2929.9,2929.7,0.0066769]
[1644643861684,1.15279021,2929.9,2929.0,0.00265711]
[1644643861888,1.05999955,2929.4,2929.0,1.09979971]
[1644643862084,0.33889547,2929.8,2929.1,0.00265711]
[1644643862085,0.04351091,2929.5,2929.1,0.00265711]
[1644643862385,0.04351091,2929.5,2929.1,1.09979224]
[1644643862689,0.04351091,2929.3,2929.2,0.00265711]
[1644643862889,0.04351091,2929.3,2929.2,1.09709903]
[1644643863089,0.04351091,2929.3,2929.2,1.09975614]
[1644643863391,0.04351091,2929.3,2929.2,0.00265711]
[1644643866338,0.04351091,2929.3,2929.1,0.0068786]
[1644643866538,0.04351091,2929.3,2929.0,0.00265711]
[1644643866539,0.04351091,2929.3,2929.0,0.17325711]
[1644643866741,0.04351091,2929.3,2929.1,1.10532719]
[1644643866939,0.04351091,2929.3,2929.1,0.00953571]
[1644643867641,0.04351091,2929.2,2929.1,0.85621711]
[1644643867842,0.04351091,2929.2,2929.1,0.85356]
[1644643868041,0.04351091,2929.2,2929.1,1.95620349]
[1644643868239,0.04351091,2929.2,2929.1,1.95643164]
[1644643868885,0.04351091,2929.2,2929.1,1.94955293]
[1644643870390,0.04351091,2929.2,2929.1,1.09599293]
[1644643871393,0.04351091,2929.2,2929.1,1.26659293]
[1644643871596,0.04351091,2929.2,2929.1,0.1706]
[1644643871794,0.04351091,2929.2,2929.0,1.10848474]
[1644643871994,0.04351091,2929.2,2929.0,0.00906292]
[1644643872398,0.04351091,2929.4,2929.0,0.00640875]
[1644643872634,0.04351091,2929.4,2928.8,0.00265417]
[1644643872635,0.1706,2929.3,2928.8,0.00265417]
[1644643872838,1.12454503,2929.2,2929.0,0.00640886]
[1644643873238,0.04351091,2929.1,2929.0,0.00640886]
[1644643873641,0.04351091,2929.1,2928.8,0.00265417]
[1644643873847,0.1706,2929.0,2928.8,0.00265417]
[1644643874041,0.1706,2929.0,2928.1,2.5613384]
[1644643874042,0.21411091,2929.1,2928.9,0.00649642]
[1644643874944,3.62999297,2929.1,2928.5,0.85376]
[1644643875140,3.62999297,2929.1,2928.1,2.5613384]
[1644643875141,0.04351091,2929.1,2928.9,0.00649653]
[1644643875344,0.21411091,2929.1,2928.9,0.00649653]
[1644643875543,0.33488294,2929.0,2928.9,0.00649653]
[1644643875742,1.33878294,2929.0,2928.9,0.00649653]
[1644643876146,1.33878294,2929.0,2928.1,0.00265417]
[1644643876394,0.33488294,2928.9,2928.8,0.00649664]
[1644643876584,0.50548294,2928.9,2928.8,0.00649664]
[1644643877284,0.80548294,2928.9,2928.1,0.00265417]
[1644643877482,1.13434069,2928.7,2928.1,0.00265417]
[1644643877688,0.1706,2928.6,2928.3,0.02591263]
[1644643877887,1.13434069,2928.7,2928.3,0.02591263]
[1644643877888,6.60494069,2928.7,2928.3,0.02591263]
[1644643878187,2.9,2928.4,2927.9,0.2285668]
[1644643878387,0.1706,2928.3,2927.3,0.00482095]
[1644643878586,0.21411091,2928.4,2927.4,1.09801703]
[1644643878986,0.21411091,2928.4,2927.3,0.00482095]
[1644643878987,1.05328153,2927.5,2927.3,0.00482095]
[1644643879188,1.05328153,2927.5,2927.4,1.09667536]
[1644643879786,1.05328153,2927.5,2927.3,0.00482095]
[1644643879988,1.05328153,2927.5,2927.3,0.17562095]
[1644643880233,3.71411091,2928.4,2927.3,0.17562095]
[1644643880433,3.71411091,2928.4,2927.3,0.0096419]
[1644643881134,3.72272322,2928.4,2927.7,0.00786071]
[1644643881339,1.13393792,2928.0,2927.7,0.00786071]
[1644643882137,1.13393792,2928.0,2927.3,0.0096419]
[1644643882739,1.13393792,2928.0,2927.7,0.00786071]
[1644643883340,1.13393792,2928.0,2927.3,0.0096419]
[1644643883341,0.04351091,2927.8,2927.3,0.0096419]
[1644643883541,0.04351091,2927.8,2927.7,0.00786071]
[1644643883742,1.4025,2928.2,2927.8,0.02303513]
[1644643884389,1.2319,2928.2,2927.8,0.02303513]
[1644643884787,0.97575335,2928.1,2927.9,0.0078603]
[1644643885187,1.2319,2928.2,2927.9,0.0078603]
[1644643885786,1.2319,2928.2,2927.8,0.02303513]
[1644643886192,1.2319,2928.2,2927.9,0.00786017]
[1644643886794,1.07401645,2928.1,2927.9,0.00786017]
[1644643886992,1.07401645,2928.1,2927.8,0.02303513]
[1644643887192,1.07401645,2928.1,2927.9,0.00786017]
[1644643888338,1.07401645,2928.1,2927.9,0.0078603]
[1644643888938,0.04351091,2928.0,2927.9,0.0078603]
[1644643889337,0.04351091,2928.0,2927.8,0.02303513]
[1644643889538,0.04351091,2928.0,2927.8,0.02540145]
[1644643890539,0.04351091,2928.0,2927.8,0.02303513]
[1644643890740,0.04351091,2928.0,2927.8,0.02540149]
[1644643891685,0.04351091,2928.0,2927.8,0.02303513]
[1644643892181,0.04351091,2928.0,2927.8,0.02540149]
[1644643892991,0.04351091,2928.0,2927.8,0.02303513]
[1644643893188,0.04351091,2928.0,2927.8,0.0308957]
[1644643893990,1.07401645,2928.1,2927.8,0.0308957]
[1644643894193,0.04351091,2928.0,2927.8,0.02303513]
[1644643894391,5.50536575,2927.9,2927.8,3.513e-05]
[1644643894591,5.80536575,2927.9,2927.8,0.0078957]
[1644643894789,6.80536575,2927.9,2927.8,0.0078957]
[1644643894989,7.72136575,2927.9,2927.8,0.0078957]
[1644643895441,7.72136575,2927.9,2927.8,3.513e-05]
[1644643895640,3.57575575,2927.9,2927.8,3.513e-05]
[1644643895843,8.87575575,2927.9,2927.8,3.513e-05]
[1644643896442,12.54387406,2927.9,2927.8,3.513e-05]
[1644643899283,13.03487406,2927.9,2927.8,3.513e-05]
[1644643899487,13.07838497,2927.9,2927.7,0.00784319]
[1644643899686,5.21739989,2927.8,2927.7,0.00784319]
[1644643899884,6.21739989,2927.8,2927.7,0.00784319]
[1644643900285,6.21739989,2927.8,2927.6,0.01772929]
[1644643900286,0.85448,2927.7,2927.6,0.01772929]
[1644643900487,3.4078,2927.6,2926.8,0.00264886]
[1644643900688,5.0,2927.1,2926.8,0.00264886]
[1644643900886,5.0,2926.9,2926.8,0.00264886]
[1644643901085,5.0,2926.9,2926.5,0.00264886]
[1644643901286,1.0,2926.8,2926.5,0.00264886]
[1644643901489,1.0,2926.8,2925.9,0.257]
[1644643901490,8.4,2926.7,2925.9,0.257]
[1644643901688,0.85487,2926.6,2925.9,0.257]
[1644643901888,2.02567,2926.6,2925.9,0.007]
[1644643902088,2.32567,2926.6,2925.9,0.007]
[1644643902285,1.4708,2926.6,2925.9,0.007]
[1644643902739,5.0,2926.3,2925.9,0.007]
[1644643902940,5.0,2926.3,2924.4,7.46]
[1644643902941,5.0,2926.0,2924.4,7.46]
[1644643903139,5.0,2925.6,2924.5,1.07449845]
[1644643903338,5.0,2925.6,2924.5,0.04661072]
[1644643903339,6.6054,2925.6,2924.5,0.04661072]
[1644643903538,5.93233577,2925.5,2924.5,0.04661072]
[1644643903740,5.93233577,2925.5,2924.1,0.04888442]
[1644643903741,1.71034,2925.3,2924.1,0.04888442]
[1644643903940,0.8551484,2925.1,2924.2,1.03452495]
[1644643904340,0.8551484,2925.1,2924.3,0.04774757]
[1644643904645,1.02594,2925.0,2924.3,0.04774757]
[1644643904842,0.04351091,2924.7,2924.3,0.04774757]
[1644643905044,1.02594,2925.0,2924.7,0.02225215]
[1644643905045,0.1708,2925.0,2924.7,0.02225215]
[1644643905242,5.355092,2925.3,2924.7,0.02225215]
[1644643905243,0.95698083,2925.1,2924.7,0.02225215]
[1644643905446,0.491,2925.4,2924.8,0.04490545]
[1644643905647,7.46496255,2925.5,2924.8,0.04490545]
[1644643905648,3.8758,2925.5,2924.8,0.04490545]
[1644643905843,4.8188,2925.6,2924.8,0.04490545]
[1644643905844,1.0054,2925.6,2924.8,0.04490545]
[1644643906144,1.0054,2925.6,2924.1,0.25]
[1644643906399,1.0054,2925.6,2925.1,0.00773463]
[1644643906589,0.84402795,2925.3,2925.1,0.00773463]
[1644643907191,1.0054,2925.6,2925.1,0.00773463]
[1644643907387,1.0054,2925.6,2924.8,0.85486]
[1644643907792,1.0054,2925.6,2925.1,0.00773463]
[1644643908595,1.10395937,2925.3,2924.3,2.0563]
[1644643908792,1.10395937,2925.3,2925.2,0.00773424]
[1644643909898,1.10395937,2925.3,2924.4,0.85496]
[1644643910136,1.10395937,2925.3,2925.1,0.00771705]
[1644643910334,1.10395937,2925.3,2924.5,3.17648205]
[1644643910536,1.10395937,2925.3,2924.3,5.00781247]
[1644643910935,1.10395937,2925.3,2924.3,1.70982]
[1644643911135,1.10395937,2925.3,2924.2,3.18142144]
[1644643911333,1.10395937,2925.3,2924.1,0.25]
[1644643911735,1.0304753,2924.8,2924.1,0.25]
[1644643912235,1.0304753,2924.8,2924.1,1.70992]
[1644643912538,0.00632166,2924.8,2924.1,1.70992]
[1644643913140,0.00632166,2924.8,2923.8,4.14541834]
[1644643913339,0.00632166,2924.8,2923.9,1.3]
[1644643913539,2.7362,2925.4,2923.9,0.95]
[1644643913740,2.7362,2925.4,2924.2,0.00762306]
[1644643913741,0.00860771,2924.8,2924.2,0.00762306]
[1644643914191,1.17944464,2924.6,2924.2,0.00762306]
[1644643914591,1.17944464,2924.6,2924.0,0.85508]
[1644643914988,0.00860792,2924.8,2924.3,0.0076228]
[1644643915890,4.0389,2925.2,2924.0,0.85508]
[1644643916090,4.0389,2925.2,2924.4,0.00762241]
[1644643916294,0.98726977,2924.8,2924.4,0.00762241]
[1644643917097,0.1708,2924.7,2924.0,0.00261621]
[1644643917297,0.1708,2924.7,2924.5,0.00762228]
[1644643917497,0.1709,2924.7,2924.5,0.00762228]
[1644643918441,1.02613,2924.7,2924.5,0.00762228]
[1644643918641,0.85523,2924.7,2924.5,0.00762228]
[1644643919443,0.85523,2924.7,2924.0,0.00261621]
[1644643919641,0.85523,2924.7,2923.9,3.95261621]
[1644643919642,0.1708,2924.6,2923.9,3.95261621]
[1644643919842,0.1708,2924.6,2924.5,0.00762228]
[1644643920042,0.85523,2924.7,2924.5,0.00762228]
[1644643920043,0.52603,2924.7,2924.5,0.00762228]
[1644643920244,0.1709,2924.6,2924.5,0.00762228]
[1644643920642,0.1709,2924.6,2923.9,3.95261621]
[1644643920842,1.02619,2924.6,2924.4,0.00762241]
[1644643921891,1.02619,2924.6,2923.9,3.95261621]
[1644643921892,3.76259479,2924.5,2923.9,3.95261621]
[1644643922090,1.11758514,2924.3,2923.9,3.95261621]
[1644643922301,0.1708,2924.2,2923.9,3.95261621]
[1644643923395,3.4,2923.9,2922.3,0.25]
[1644643923597,3.4,2922.9,2922.4,0.04816256]
[1644643923794,0.01240167,2922.6,2922.4,0.04816256]
[1644643923995,2.5680853,2922.7,2921.4,0.0018355]
[1644643923996,0.171,2922.5,2921.5,0.25]
[1644643924195,4.2711,2922.6,2921.4,0.0018355]
[1644643924393,0.1711,2922.4,2921.4,0.0018355]
[1644643924592,0.6621,2922.4,2921.4,0.0018355]
[1644643924793,1.34694,2922.4,2920.8,0.30222817]
[1644643924993,1.07505251,2922.3,2920.9,0.88945628]
[1644643925243,1.13214021,2921.5,2920.9,0.88945628]
[1644643925447,3.5,2922.2,2920.9,0.88945628]
[1644643925645,0.1711,2922.1,2920.9,0.88945628]
[1644643925847,0.4711,2922.3,2921.0,0.05088357]
[1644643926045,0.1711,2922.3,2921.0,0.05088357]
[1644643926446,1.07654586,2922.0,2921.1,0.1711]
[1644643926646,3.7805,2922.7,2921.1,0.1711]
[1644643926845,1.1711,2922.6,2921.0,3.5]
[1644643927045,0.8560147,2922.4,2921.0,3.503671]
[1644643927245,0.1711,2922.3,2921.0,3.503671]
[1644643927445,2.7120293,2922.6,2921.0,3.503671]
[1644643927446,0.1711,2922.5,2921.0,3.503671]
[1644643927646,1.7120293,2922.6,2921.1,0.1711]
[1644643927647,2.0120293,2922.6,2921.1,0.1711]
[1644643927850,0.83941416,2921.7,2921.1,0.1211]
[1644643928153,2.7120293,2922.6,2921.1,0.124771]
[1644643928154,4.4240593,2922.6,2921.1,0.124771]
[1644643928349,4.4240593,2922.6,2921.1,0.003671]
[1644643928551,4.4240593,2922.6,2921.2,0.1711]
[1644643928750,2.71203,2922.6,2921.2,0.1711]
[1644643928994,6.0923572,2922.7,2921.2,0.1711]
[1644643928995,1.1306217,2922.4,2921.8,0.92015224]
[1644643929294,4.6364072,2922.7,2921.8,0.92015224]
[1644643929496,1.4108,2922.8,2921.8,0.92015224]
[1644643929497,1.2397,2922.8,2921.8,0.92015224]
[1644643929694,4.84,2922.9,2921.8,0.92015224]
[1644643930097,1.1597,2922.9,2921.8,0.92015224]
[1644643930497,0.00857996,2922.5,2921.9,3.50620986]
[1644643930701,0.00857996,2922.5,2922.3,1.15069558]
[1644643930897,0.00857996,2922.5,2921.9,3.41442115]
[1644643931101,0.00857996,2922.5,2921.5,3.51282816]
[1644643931299,0.00857996,2922.5,2921.4,0.003671]
[1644643931500,0.4711,2922.7,2921.4,0.003671]
[1644643931699,0.1711,2922.7,2921.4,0.003671]
[1644643931897,0.1711,2922.7,2921.4,0.89933899]
[1644643932497,0.1711,2922.7,2921.5,3.5]
[1644643932748,0.1711,2922.7,2921.6,0.85574]
[1644643932943,0.1711,2922.7,2922.3,0.67801381]
[1644643934544,0.1711,2922.7,2921.9,0.171]
[1644643935445,0.00859247,2922.4,2922.2,0.64419233]
[1644643935644,0.85090152,2922.9,2922.4,0.00114858]
[1644643935847,0.85090152,2922.9,2922.2,0.59534091]
[1644643936044,0.85090152,2922.9,2922.3,0.00261089]
[1644643937186,0.09334217,2923.0,2922.3,3.24914741]
[1644643937387,1.02672,2923.2,2922.3,0.00261089]
[1644643937589,0.171,2923.2,2922.3,0.00261089]
[1644643938394,0.171,2923.2,2922.8,0.69554299]
[1644643938591,0.77684952,2923.4,2922.8,0.69554299]
[1644643938592,0.77684952,2923.4,2922.9,0.00261089]
[1644643939392,0.171,2923.5,2922.9,0.00261089]
[1644643939593,11.60404,2924.3,2922.9,0.00261089]
[1644643939594,0.171,2923.6,2922.9,0.00261089]
[1644643939891,3.6243,2924.1,2922.9,0.00261089]
[1644643939892,0.171,2924.0,2922.9,0.00261089]
[1644643940134,0.171,2923.5,2922.6,0.00261089]
[1644643940336,0.00859176,2923.4,2922.6,0.00261089]
[1644643940938,0.00859176,2923.4,2922.9,0.63598789]
[1644643941136,0.66226054,2923.5,2923.0,0.00261089]
[1644643941336,0.00859194,2923.1,2923.0,0.00261089]
[1644643942034,0.00859194,2923.1,2922.9,9.14848381]
[1644643942434,1.06557662,2924.0,2923.4,0.67723926]
[1644643942635,0.171,2924.1,2923.4,0.67723926]
[1644643942840,0.171,2924.1,2923.5,0.00261089]
[1644643943039,0.171,2924.3,2923.5,0.00261089]
[1644643943243,0.1708,2924.5,2923.5,0.04350042]
[1644643943442,0.03435121,2924.6,2923.6,0.6618]
[1644643943639,7.7855,2924.9,2924.5,0.66075705]
[1644643943901,0.88722636,2925.0,2924.6,0.00261089]
[1644643944289,0.88722636,2925.0,2924.3,0.00261089]
[1644643944590,0.78722636,2925.0,2924.1,0.00261089]
[1644643944790,0.1708,2925.2,2924.2,0.8549919]
[1644643944995,3.5,2925.7,2924.6,0.85491]
[1644643944996,0.0083496,2924.8,2924.6,0.85491]
[1644643945191,0.0083496,2924.8,2924.7,0.09998]
[1644643945392,0.0083496,2924.8,2924.7,0.59098]
[1644643945589,0.0083496,2924.8,2924.7,0.59359089]
[1644643945789,0.0083496,2924.8,2924.7,1.28735109]
[1644643945992,0.0083496,2924.8,2924.7,4.83226895]
[1644643946193,0.1708,2925.8,2924.7,4.83226895]
[1644643946397,0.1708,2925.8,2924.9,0.85487]
[1644643946398,0.03339314,2925.3,2924.9,0.85487]
[1644643947195,0.3536646,2925.9,2924.9,0.85487]
[1644643947395,0.67104179,2925.7,2925.2,0.89139961]
[1644643947637,0.70364296,2925.7,2924.9,0.85487]
[1644643947841,0.70364296,2925.7,2924.8,0.10258089]
[1644643948442,0.67104179,2925.7,2924.8,0.10258089]
[1644643948645,0.00814356,2925.4,2925.0,0.67314547]
[1644643949142,0.00814356,2925.4,2925.1,3.2434379]
[1644643949542,0.3536646,2925.9,2925.1,4.3344379]
[1644643949743,0.3536646,2925.9,2925.2,1.0]
[1644643949943,0.3536646,2925.9,2925.8,0.88557719]
[1644643950442,0.3536646,2925.9,2925.5,3.7457317]
[1644643950443,0.3536646,2925.9,2925.3,5.55762859]
[1644643950642,0.3536646,2925.9,2925.3,2.20026]
[1644643950843,0.3536646,2925.9,2925.4,3.21648665]
[1644643951043,0.3536646,2925.9,2925.4,0.491]
[1644643951044,0.00814335,2925.7,2925.4,0.491]
[1644643951493,0.00814335,2925.7,2925.4,1.1719814]
[1644643952090,0.3536646,2925.9,2925.4,1.1719814]
[1644643952291,0.00819574,2925.7,2925.4,1.1719814]
[1644643952493,0.00819574,2925.7,2925.5,4.15477091]
[1644643952698,0.00819574,2925.7,2925.6,0.1708]
[1644643952895,0.00819574,2925.7,2925.5,4.13257356]
[1644643953095,0.00819574,2925.7,2925.5,0.8547]
[1644643953295,0.3536646,2925.9,2925.5,0.8547]
[1644643953500,0.00819571,2925.7,2925.5,0.8547]
[1644643954497,0.3536646,2925.9,2925.5,0.8547]
[1644643954697,0.00819571,2925.7,2925.5,0.8547]
[1644643955538,0.3536646,2925.9,2925.5,0.87244134]
[1644643955740,0.3536646,2925.9,2925.6,8.32982125]
[1644643955940,0.3536646,2925.9,2925.6,3.82082125]
[1644643955941,0.00818748,2925.7,2925.6,3.82082125]
[1644643956140,0.00818748,2925.7,2925.6,6.68403125]
[1644643956740,0.3536646,2925.9,2925.6,6.68403125]
[1644643956939,0.3536646,2925.9,2925.7,1.0252422]
[1644643957139,0.00818745,2925.8,2925.7,1.8796122]
[1644643957339,0.15535205,2925.9,2925.8,3.4]
[1644643957539,0.15535205,2925.9,2925.8,8.3001547]
[1644643957743,5.205e-05,2925.9,2925.8,8.3001547]
[1644643959592,5.205e-05,2925.9,2925.8,9.11738319]
[1644643960594,5.205e-05,2925.9,2925.8,8.3001547]
[1644643961397,0.03274773,2926.7,2926.0,3.4]
[1644643961596,0.1708,2927.9,2926.4,11.9931619]
[1644643961796,0.001,2928.2,2926.5,5.90939933]
[1644643961797,0.55911243,2927.8,2926.5,5.90939933]
[1644643961993,0.1708,2928.2,2926.5,6.20939933]
[1644643961994,0.001,2928.2,2926.5,6.20939933]
[1644643962193,0.1708,2928.1,2926.5,6.20939933]
[1644643962840,0.55847314,2928.0,2927.5,0.84925914]
[1644643963042,0.1706,2927.9,2927.5,0.84925914]
[1644643963443,0.1706,2928.1,2927.5,0.84925914]
[1644643963742,0.55820201,2928.0,2927.5,0.84925914]
[1644643963945,0.1706,2927.9,2927.5,0.84925914]
[1644643964345,0.00638965,2927.9,2927.5,0.84925914]
[1644643965343,0.001,2928.5,2928.0,0.66026351]
[1644643965543,0.02555475,2928.3,2928.0,0.66026351]
[1644643965843,0.01147253,2927.8,2927.4,0.85415]
[1644643966790,0.00859159,2927.7,2927.5,0.68293334]
[1644643967692,0.01147253,2927.8,2927.5,0.68293334]
[1644643967892,0.00859159,2927.7,2927.5,0.68293334]
[1644643968092,0.00859159,2927.7,2927.5,3.90351222]
[1644643968693,0.00859159,2927.7,2927.6,3.24752515]
[1644643968894,0.01147253,2927.8,2927.6,3.24752515]
[1644643968895,0.01147253,2927.8,2927.7,0.85404]
[1644643969393,0.01147253,2927.8,2927.5,0.68293334]
[1644643970239,0.01147253,2927.8,2927.3,1.87872]
[1644643970437,0.02006408,2927.8,2927.3,2.36972]
[1644643970643,0.02006408,2927.8,2927.3,0.1706]
[1644643970841,0.1706,2927.7,2927.3,0.1706]
[1644643971039,0.1706,2927.7,2926.7,0.25]
[1644643971040,0.53196123,2927.6,2926.7,0.25]
[1644643971338,0.53196123,2927.6,2926.2,5.20879]
[1644643971339,0.1708,2927.5,2926.2,5.20879]
[1644643972037,0.1708,2927.5,2926.4,0.85443]
[1644643972437,0.1708,2927.5,2926.8,0.66164592]
[1644643972438,0.81116979,2927.5,2926.8,0.66164592]
[1644643972637,0.81116979,2927.5,2926.4,0.85443]
[1644643972843,0.00859208,2927.1,2926.4,0.85443]
[1644643973641,0.1708,2927.4,2926.4,1.66366514]
[1644643973901,0.00859223,2926.9,2926.4,1.66366514]
[1644643974792,0.03436378,2927.3,2926.4,1.66366514]
[1644643974793,0.1708,2927.4,2926.4,1.66366514]
[1644643974992,0.1708,2927.2,2926.4,1.66366514]
[1644643975291,0.00859231,2926.8,2926.4,1.66366514]
[1644643975692,0.00859231,2926.8,2926.4,0.11286455]
[1644643976092,0.1708,2927.1,2926.4,0.11286455]
[1644643976293,0.00859235,2926.7,2926.4,0.11286455]
[1644643976896,0.00859235,2926.7,2926.4,0.96729455]
[1644643977298,0.1708,2927.1,2926.4,0.85443]
[1644643977495,0.00859238,2926.7,2926.2,1.70879]
[1644643978444,0.0108403,2927.4,2926.4,4.25444]
[1644643978644,0.00859246,2926.6,2926.5,4.1618]
[1644643979143,0.00859246,2926.6,2926.5,0.6618]
[1644643979745,0.0108403,2927.4,2926.7,1.70848]
[1644643979952,0.0063583,2927.2,2926.8,0.6618]
[1644643980346,0.0063583,2927.2,2926.8,0.9618]
[1644643980748,0.0063583,2927.2,2927.1,0.85425]
[1644643980946,3.6516,2928.1,2927.1,0.85425]
[1644643980947,3.6516,2928.1,2927.6,0.67365821]
[1644643981146,0.53275943,2928.0,2927.2,0.1706]
[1644643981398,0.50732869,2927.9,2927.2,0.6616]
[1644643982196,0.50732869,2927.8,2927.4,0.68816549]
[1644643982397,0.00860195,2927.7,2927.4,0.68816549]
[1644643982604,0.00860195,2927.7,2927.5,0.6616]
[1644643982997,0.00860195,2927.7,2927.5,0.9616]
[1644643983197,3.5,2928.5,2927.5,0.9616]
[1644643983398,0.001,2928.5,2928.4,0.65505426]
[1644643983598,0.001,2928.5,2927.5,1.2616]
[1644643983599,0.00860191,2927.7,2927.5,2.96936]
[1644643983799,0.00860191,2927.7,2927.5,2.79876]
[1644643983998,0.00860191,2927.7,2927.6,0.85389]
[1644643984199,0.00860191,2927.7,2927.6,2.369494]